Workbook

Sheet Resumo
A1: 1ª Superintendência Regional – Montes Claros / MG | B1: PROCESSO ADM. N° 59510.002092/2021-98
B2: Planilha resumo de valores
B3: CATEGORIA | C3: Qtde de Postos | D3: Valor Unitário | E3: Valor Mensal | F3: Valor Anual
B4: Montes Claros - almoxarife | C4: 4 | D4: ='Almoxarife - Montes Claros'!J118 -> 4898.79 | E4: =(C4*D4) -> 19595.16 | F4: =(E4*12) -> 235141.92
B5: Montes Claros - Supervisor | C5: 1 | D5: ='Supervisor - Montes Claros'!J119 -> 6498.5 | E5: =(C5*D5) -> 6498.5 | F5: =(E5*12) -> 77982
B6: Nova Porteirinha - almoxarife | C6: 3 | D6: ='Almoxarife - Nova Porteirinha'!J119 -> 4616.44 | E6: 13849.32 | F6: 166191.84
B7: Três Marias - almoxarife | C7: 2 | D7: ='Almoxarife - Três Marias'!J118 -> 4947.13 | E7: 9894.26 | F7: 118731.12
B8: Subtotal: | E8: =SUM(E4:E7) -> 49837.24 | F8: =SUM(F4:F7) -> 598046.88
B9: Total | F9: =F8 -> 598046.88
B10: Declarações:

Sheet Almoxarife - Montes Claros
A1: 1ª Superintendência Regional – Montes Claros / MG | B1: Discriminação dos Serviços
B2: B | C2: Município | J2: Montes Claros/MG
B3: C | C3: Ano do Acordo, Convenção ou Dissídio Coletivo | J3: 2021
B4: D | C4: Nº de meses de execução contratual | J4: 12
B6: Identificação do Serviço
B7: Tipo de Serviço | D7: Unidade de Medida | F7: Quantidade total a contratar
B8: ALMOXARIFE | D8: SERVIÇO | F8: 4
B10: Dados para composição dos custos referentes à mão-de-obra
B11: 1 | C11: Tipo de serviço (mesmo serviço com características distintas) | J11: =B8 -> ALMOXARIFE
B12: 2 | C12: Classificação Brasileira de Ocupações (CBO) | J12: 4141-05
B13: 3 | C13: Salário Nominativo da Categoria Profissional | J13: 1709.47
B14: 4 | C14: Categoria profissional (vinculada à execução contratual) | J14: ALMOXARIFE
B15: 5 | C15: Data base da categoria (dia/mês/ano) | J15: 2021-01-01
B17: MÓDULO 1 - COMPOSIÇÃO DA REMUNERAÇÃO
B18: 1 | C18: COMPOSIÇÃO DA REMUNERAÇÃO | I18: % | J18: VALOR (R$)
B19: A | C19: Salário Base | J19: =J13 -> 1709.47
B20: B | C20: Adicional Periculosidade | J20: 0
B21: C | C21: Adicional Insalubridade | J21: =I21*J19 -> 0
B22: D | C22: Adicional Noturno | J22: 0
B23: E | C23: Adicional de Hora Noturna Reduzida | J23: 0
B24: F | C24: Outros (especificar) | J24: 0
B25: TOTAL DO MÓDULO 1 | J25: =TRUNC(SUM(J19:J24),2) -> 1709.47
B27: MÓDULO 2 – ENCARGOS E BENEFÍCIOS ANUAIS, MENSAIS E DIÁRIOS
B28: Submódulo 2.1 - 13º Salário, Férias e Adicional de Férias | I28: % | J28: VALOR (R$)
B29: A | C29: 13 (Décimo-terceiro) salário | I29: 0.0833 | J29: =I29*J25 -> 142.398851
B30: B | C30: Férias e Adicional de Férias | I30: 0.121 | J30: =I30*J25 -> 206.84587
B31: TOTAL SUBMÓDULO 2.1 | I31: =TRUNC(SUM(I29:I30),4) -> 0.2043 | J31: =TRUNC(SUM(J29:J30),2) -> 349.24
B33: Submódulo 2.2 - GPS, FGTS e Outras Contribuições | I33: % | J33: VALOR (R$)
B34: A | C34: INSS | I34: 0.2 | J34: =I34*$J$25 -> 341.894
B35: B | C35: Salário Educação | I35: 0.025 | J35: =I35*$J$25 -> 42.73675
B36: C | C36: SAT | I36: 0.03 | J36: 51.2841
B37: D | C37: SESC ou SESI | I37: 0.015 | J37: 25.64205
B38: E | C38: SENAI - SENAC | I38: 0.01 | J38: 17.0947
B39: F | C39: SEBRAE | I39: 0.006 | J39: 10.25682
B40: G | C40: INCRA | I40: 0.002 | J40: 3.41894
B41: H | C41: FGTS | I41: 0.08 | J41: 136.7576
B42: TOTAL SUBMÓDULO 2.2 | I42: =SUM(I34:I41) -> 0.368 | J42: =TRUNC(SUM(J34:J41),2) -> 629.08
B44: Submódulo 2.3 - Benefícios Mensais e Diários | J44: VALOR (R$)
B45: A | C45: Transporte | I45: - | J45: =((3.2*4)*22)-(6%*J25) -> 179.0318
B46: B | C46: Auxílio-Refeição/Alimentação | I46: - | J46: =22.28*22*80% -> 392.128
B47: C | C47: Seguro de vida | I47: - | J47: 10
B48: D | C48: Auxílio Saúde - PAF | I48: - | J48: 37.23
B49: E | C49: Contribuição Assistencial Patronal | I49: - | J49: 11.19
B50: F | C50: Outros (especificar) | I50: -
B51: TOTAL SUBMÓDULO 2.3 | J51: =TRUNC(SUM(J45:J50),2) -> 629.57
B53: QUADRO-RESUMO DO MÓDULO 2 - ENCARGOS, BENEFÍCIOS ANUAIS, MENSAIS E DIÁRIOS
B54: Módulo 2 - Encargos, Benefícios Anuais, Mensais e Diários | J54: VALOR (R$)
B55: 2.1 | C55: 13º Salário, Férias e Adicional de Férias | J55: =J31 -> 349.24
B56: 2.2 | C56: GPS, FGTS e Outras Contribuições | J56: =J42 -> 629.08
B57: 2.3 | C57: Benefícios Mensais e Diários | J57: =J51 -> 629.57
B58: TOTAL DO MÓDULO 2 | J58: =TRUNC(SUM(J55:J57),2) -> 1607.89
B60: MÓDULO 3 – PROVISÃO PARA RESCISÃO
B61: 3 | C61: PROVISÃO PARA RESCISÃO | I61: % | J61: VALOR (R$)
B62: A | C62: Aviso Prévio Indenizado | I62: 0.0284 | J62: =I62*$J$25 -> 48.548948
B63: B | C63: Incidência do FGTS sobre Aviso Prévio Indenizado | I63: =0.08*I62 -> 0.002272 | J63: 3.88391584
B64: C | C64: Multa do FGTS e Contribuição Social sobre o Aviso Prévio Indenizado | I64: 0.05 | J64: 85.4735
B65: D | C65: Aviso Prévio Trabalhado | I65: 0.01 | J65: 17.0947
B66: E | C66: Incidência dos encargos do submódulo 2.2 sobre Aviso Prévio Trabalhado | I66: =I42*I65 -> 0.00368 | J66: 6.2908496
B67: F | C67: Multa do FGTS e Contribuição Social sobre o Aviso Prévio Trabalhado. | I67: 0.05 | J67: 85.4735
B68: TOTAL DO MÓDULO 3 | I68: =TRUNC(SUM(I62:I67),4) -> 0.1443 | J68: =TRUNC(SUM(J62:J67),2) -> 246.76
B70: MÓDULO 4 – CUSTO DE REPOSIÇÃO DO PROFISSIONAL AUSENTE
B71: Submódulo 4.1 - Ausências Legais | I71: % | J71: VALOR (R$)
B72: A | C72: Férias | I72: 0.0833 | J72: =I72*$J$25 -> 142.398851
B73: B | C73: Ausências Legais | I73: 0.025 | J73: =I73*$J$25 -> 42.73675
B74: C | C74: Licença Paternidade | I74: 0.025 | J74: =I74*$J$25 -> 42.73675
B75: D | C75: Ausência por Acidente de Trabalho | I75: 0.02 | J75: =I75*$J$25 -> 34.1894
B76: E | C76: Afastamento Maternidade | I76: 0.03 | J76: =I76*$J$25 -> 51.2841
B77: F | C77: Outros (especificar)
B78: TOTAL SUBMÓDULO 4.1 | J78: =TRUNC(SUM(J72:J77),2) -> 313.34
B80: Submódulo 4.2 - Intrajornada | I80: % | J80: VALOR (R$)
B81: A | C81: Intervalo para Repouso ou Alimentação | I81: 0 | J81: =$J$25*I81 -> 0
B82: TOTAL SUBMÓDULO 4.2 | I82: =TRUNC(SUM(I81),4) -> 0 | J82: =TRUNC(SUM(J81),2) -> 0
B84: QUADRO-RESUMO DO MÓDULO 4 - CUSTO DE REPOSIÇÃO DO PROFISSIONAL AUSENTE
B85: Módulo 4 - Custo de Reposição do Profissional Ausente | J85: VALOR (R$)
B86: 4.1 | C86: Ausências Legais | J86: =J78 -> 313.34
B87: 4.2 | C87: Intrajornada | J87: =J82 -> 0
B88: TOTAL DO MÓDULO 4 | J88: =TRUNC(SUM(J86:J87),2) -> 313.34
B90: MÓDULO 5 – INSUMOS DIVERSOS
B91: 5 | C91: INSUMOS DIVERSOS | J91: VALOR (R$)
B92: A | C92: Uniformes | I92: - | J92: =Uniformes!E5 -> 32.14
B93: B | C93: Materiais (mensal + quadrimestral + utensilios) | I93: - | J93: -
B94: C | C94: Equipamentos (EQUIPAMENTOS DE LIMPEZA) | I94: - | J94: 0
B95: D | C95: Outros (CRACHÁS) | I95: - | J95: 0
B96: TOTAL DO MÓDULO 5 | I96: - | J96: =SUM(J92:J95) -> 32.14
B98: MÓDULO 6 – CUSTOS INDIRETOS, TRIBUTOS E LUCRO
B99: 6 | C99: CUSTOS INDIRETOS, TRIBUTOS E LUCRO | I99: % | J99: VALOR (R$)
B100: A | C100: Custos Indiretos | I100: 0.03 | J100: =TRUNC(I100*J116,2) -> 117.28
B101: B | C101: Lucro | I101: 0.0675 | J101: =TRUNC(I101*(J100+J116),2) -> 271.81
B102: C | C102: TRIBUTOS | F102: Base Cálculo | H102: =ROUND((J116+J100+J101)/(1-I102),2) -> 4898.79 | I102: =I103+I104+I105 -> 0.1225 | J102: =H102*I102 -> 600.101775
B103: C.1 | C103: PIS | I103: 0.0165 | J103: =H102*I103 -> 80.830035
B104: C.2 | C104: COFINS | I104: 0.076 | J104: =H102*I104 -> 372.30804
B105: C.3 | C105: ISSQN | I105: 0.03 | J105: =H102*I105 -> 146.9637
B106: TOTAL DO MÓDULO 6 | J106: =J100+J101+J102 -> 989.191775
B109: QUADRO RESUMO DO CUSTO POR EMPREGADO
B110: Mão-de-Obra vinculada à execução contratual (valor por empregado) | J110: VALOR (R$)
B111: A | C111: =B17 -> MÓDULO 1 - COMPOSIÇÃO DA REMUNERAÇÃO | J111: =J25 -> 1709.47
B112: B | C112: =B27 -> MÓDULO 2 – ENCARGOS E BENEFÍCIOS ANUAIS, MENSAIS E DIÁRIOS | J112: =J58 -> 1607.89
B113: C | C113: =B60 -> MÓDULO 3 – PROVISÃO PARA RESCISÃO | J113: =J68 -> 246.76
B114: D | C114: =B70 -> MÓDULO 4 – CUSTO DE REPOSIÇÃO DO PROFISSIONAL AUSENTE | J114: =J88 -> 313.34
B115: E | C115: =B90 -> MÓDULO 5 – INSUMOS DIVERSOS | J115: =J96 -> 32.14
C116: Subtotal (A + B + C + D + E) | J116: =TRUNC(SUM(J111:J115),2) -> 3909.6
B117: F | C117: =B98 -> MÓDULO 6 – CUSTOS INDIRETOS, TRIBUTOS E LUCRO | J117: =J106 -> 989.191775
B118: PREÇO TOTAL POR EMPREGADO | J118: =TRUNC(SUM(J116:J117),2) -> 4898.79

Sheet Supervisor - Montes Claros
A1: 1ª Superintendência Regional – Montes Claros / MG | B1: Discriminação dos Serviços
B2: B | C2: Município | J2: Montes Claros/MG
B3: C | C3: Ano do Acordo, Convenção ou Dissídio Coletivo | J3: 2021
B4: D | C4: Nº de meses de execução contratual | J4: 12
B6: Identificação do Serviço
B7: Tipo de Serviço | D7: Unidade de Medida | F7: Quantidade total a contratar
B8: SUPERVISOR | D8: SERVIÇO | F8: 1
B10: Dados para composição dos custos referentes à mão-de-obra
B11: 1 | C11: Tipo de serviço (mesmo serviço com características distintas) | J11: Supervisor
B12: 2 | C12: Classificação Brasileira de Ocupações (CBO) | J12: 5103
B13: 3 | C13: Salário Nominativo da Categoria Profissional | J13: 2381.43
B14: 4 | C14: Categoria profissional (vinculada à execução contratual) | J14: Supervisor
B15: 5 | C15: Data base da categoria (dia/mês/ano) | J15: 2021-01-01
B17: MÓDULO 1 - COMPOSIÇÃO DA REMUNERAÇÃO
B18: 1 | C18: COMPOSIÇÃO DA REMUNERAÇÃO | I18: % | J18: VALOR (R$)
B19: A | C19: Salário Base | J19: =J13 -> 2381.43
B20: B | C20: Adicional Periculosidade | J20: 0
B21: C | C21: Adicional Insalubridade | J21: =I21*J19 -> 0
B22: D | C22: Adicional Noturno | J22: 0
B23: E | C23: Adicional de Hora Noturna Reduzida | J23: 0
J24: 0
B25: G | C25: Outros (especificar) | J25: 0
B26: TOTAL DO MÓDULO 1 | J26: =TRUNC(SUM(J19:J25),2) -> 2381.43
B28: MÓDULO 2 – ENCARGOS E BENEFÍCIOS ANUAIS, MENSAIS E DIÁRIOS
B29: Submódulo 2.1 - 13º Salário, Férias e Adicional de Férias | I29: % | J29: VALOR (R$)
B30: A | C30: 13 (Décimo-terceiro) salário | I30: 0.0833 | J30: =I30*J26 -> 198.373119
B31: B | C31: Férias e Adicional de Férias | I31: 0.121 | J31: =I31*J26 -> 288.15303
B32: TOTAL SUBMÓDULO 2.1 | I32: =TRUNC(SUM(I30:I31),4) -> 0.2043 | J32: =TRUNC(SUM(J30:J31),2) -> 486.52
B34: Submódulo 2.2 - GPS, FGTS e Outras Contribuições | I34: % | J34: VALOR (R$)
B35: A | C35: INSS | I35: 0.2 | J35: =I35*$J$26 -> 476.286
B36: B | C36: Salário Educação | I36: 0.025 | J36: =I36*$J$26 -> 59.53575
B37: C | C37: SAT | I37: 0.03 | J37: 71.4429
B38: D | C38: SESC ou SESI | I38: 0.015 | J38: 35.72145
B39: E | C39: SENAI - SENAC | I39: 0.01 | J39: 23.8143
B40: F | C40: SEBRAE | I40: 0.006 | J40: 14.28858
B41: G | C41: INCRA | I41: 0.002 | J41: 4.76286
B42: H | C42: FGTS | I42: 0.08 | J42: 190.5144
B43: TOTAL SUBMÓDULO 2.2 | I43: =SUM(I35:I42) -> 0.368 | J43: =TRUNC(SUM(J35:J42),2) -> 876.36
B45: Submódulo 2.3 - Benefícios Mensais e Diários | J45: VALOR (R$)
B46: A | C46: Transporte | I46: - | J46: ='Almoxarife - Montes Claros'!J45 -> 179.0318
B47: B | C47: Auxílio-Refeição/Alimentação | I47: - | J47: =22.28*22*80% -> 392.128
B48: D | C48: Seguro de vida | I48: - | J48: 10
B49: E | C49: Auxílio Saúde - PAF | I49: - | J49: 37.23
B50: F | C50: Contribuição Assistencial Patronal | I50: - | J50: 11.19
B51: G | C51: Outros (especificar) | I51: -
B52: TOTAL SUBMÓDULO 2.3 | J52: =TRUNC(SUM(J46:J51),2) -> 629.57
B54: QUADRO-RESUMO DO MÓDULO 2 - ENCARGOS, BENEFÍCIOS ANUAIS, MENSAIS E DIÁRIOS
B55: Módulo 2 - Encargos, Benefícios Anuais, Mensais e Diários | J55: VALOR (R$)
B56: 2.1 | C56: 13º Salário, Férias e Adicional de Férias | J56: =J32 -> 486.52
B57: 2.2 | C57: GPS, FGTS e Outras Contribuições | J57: =J43 -> 876.36
B58: 2.3 | C58: Benefícios Mensais e Diários | J58: =J52 -> 629.57
B59: TOTAL DO MÓDULO 2 | J59: =TRUNC(SUM(J56:J58),2) -> 1992.45
B61: MÓDULO 3 – PROVISÃO PARA RESCISÃO
B62: 3 | C62: PROVISÃO PARA RESCISÃO | I62: % | J62: VALOR (R$)
B63: A | C63: Aviso Prévio Indenizado | I63: 0.0284 | J63: =I63*$J$26 -> 67.632612
B64: B | C64: Incidência do FGTS sobre Aviso Prévio Indenizado | I64: =0.08*I63 -> 0.002272 | J64: 5.41060896
B65: C | C65: Multa do FGTS e Contribuição Social sobre o Aviso Prévio Indenizado | I65: 0.05 | J65: 119.0715
B66: D | C66: Aviso Prévio Trabalhado | I66: 0.01 | J66: 23.8143
B67: E | C67: Incidência dos encargos do submódulo 2.2 sobre Aviso Prévio Trabalhado | I67: =I43*I66 -> 0.00368 | J67: 8.7636624
B68: F | C68: Multa do FGTS e Contribuição Social sobre o Aviso Prévio Trabalhado. | I68: 0.05 | J68: 119.0715
B69: TOTAL DO MÓDULO 3 | I69: =TRUNC(SUM(I63:I68),4) -> 0.1443 | J69: =TRUNC(SUM(J63:J68),2) -> 343.76
B71: MÓDULO 4 – CUSTO DE REPOSIÇÃO DO PROFISSIONAL AUSENTE
B72: Submódulo 4.1 - Ausências Legais | I72: % | J72: VALOR (R$)
B73: A | C73: Férias | I73: 0.0833 | J73: =I73*$J$26 -> 198.373119
B74: B | C74: Ausências Legais | I74: 0.025 | J74: =I74*$J$26 -> 59.53575
B75: C | C75: Licença Paternidade | I75: 0.025 | J75: =I75*$J$26 -> 59.53575
B76: D | C76: Ausência por Acidente de Trabalho | I76: 0.02 | J76: =I76*$J$26 -> 47.6286
B77: E | C77: Afastamento Maternidade | I77: 0.03 | J77: =I77*$J$26 -> 71.4429
B78: F | C78: Outros (especificar)
B79: TOTAL SUBMÓDULO 4.1 | J79: =TRUNC(SUM(J73:J78),2) -> 436.51
B81: Submódulo 4.2 - Intrajornada | I81: % | J81: VALOR (R$)
B82: A | C82: Intervalo para Repouso ou Alimentação | I82: 0 | J82: =$J$26*I82 -> 0
B83: TOTAL SUBMÓDULO 4.2 | I83: =TRUNC(SUM(I82),4) -> 0 | J83: =TRUNC(SUM(J82),2) -> 0
B85: QUADRO-RESUMO DO MÓDULO 4 - CUSTO DE REPOSIÇÃO DO PROFISSIONAL AUSENTE
B86: Módulo 4 - Custo de Reposição do Profissional Ausente | J86: VALOR (R$)
B87: 4.1 | C87: Ausências Legais | J87: =J79 -> 436.51
B88: 4.2 | C88: Intrajornada | J88: =J83 -> 0
B89: TOTAL DO MÓDULO 4 | J89: =TRUNC(SUM(J87:J88),2) -> 436.51
B91: MÓDULO 5 – INSUMOS DIVERSOS
B92: 5 | C92: INSUMOS DIVERSOS | J92: VALOR (R$)
B93: A | C93: Uniformes | I93: - | J93: =Uniformes!E5 -> 32.14
B94: B | C94: Materiais (mensal + quadrimestral + utensilios) | I94: - | J94: -
B95: C | C95: Equipamentos (EQUIPAMENTOS DE LIMPEZA) | I95: - | J95: 0
B96: D | C96: Outros (CRACHÁS) | I96: - | J96: 0
B97: TOTAL DO MÓDULO 5 | I97: - | J97: =SUM(J93:J96) -> 32.14
B99: MÓDULO 6 – CUSTOS INDIRETOS, TRIBUTOS E LUCRO
B100: 6 | C100: CUSTOS INDIRETOS, TRIBUTOS E LUCRO | I100: % | J100: VALOR (R$)
B101: A | C101: Custos Indiretos | I101: 0.03 | J101: =TRUNC(I101*J117,2) -> 155.58
B102: B | C102: Lucro | I102: 0.0675 | J102: =TRUNC(I102*(J101+J117),2) -> 360.57
B103: C | C103: TRIBUTOS | F103: Base Cálculo | H103: =ROUND((J117+J101+J102)/(1-I103),2) -> 6498.51 | I103: =I104+I105+I106 -> 0.1225 | J103: =H103*I103 -> 796.067475
B104: C.1 | C104: PIS | I104: 0.0165 | J104: =H103*I104 -> 107.225415
B105: C.2 | C105: COFINS | I105: 0.076 | J105: =H103*I105 -> 493.88676
B106: C.3 | C106: ISSQN | I106: 0.03 | J106: =H103*I106 -> 194.9553
B107: TOTAL DO MÓDULO 6 | J107: =J101+J102+J103 -> 1312.217475
B110: QUADRO RESUMO DO CUSTO POR EMPREGADO
B111: Mão-de-Obra vinculada à execução contratual (valor por empregado) | J111: VALOR (R$)
B112: A | C112: =B17 -> MÓDULO 1 - COMPOSIÇÃO DA REMUNERAÇÃO | J112: =J26 -> 2381.43
B113: B | C113: =B28 -> MÓDULO 2 – ENCARGOS E BENEFÍCIOS ANUAIS, MENSAIS E DIÁRIOS | J113: =J59 -> 1992.45
B114: C | C114: =B61 -> MÓDULO 3 – PROVISÃO PARA RESCISÃO | J114: =J69 -> 343.76
B115: D | C115: =B71 -> MÓDULO 4 – CUSTO DE REPOSIÇÃO DO PROFISSIONAL AUSENTE | J115: =J89 -> 436.51
B116: E | C116: =B91 -> MÓDULO 5 – INSUMOS DIVERSOS | J116: =J97 -> 32.14
C117: Subtotal (A + B + C + D + E) | J117: =TRUNC(SUM(J112:J116),2) -> 5186.29
B118: F | C118: =B99 -> MÓDULO 6 – CUSTOS INDIRETOS, TRIBUTOS E LUCRO | J118: =J107 -> 1312.217475
B119: PREÇO TOTAL POR EMPREGADO | J119: =TRUNC(SUM(J117:J118),2) -> 6498.5

Sheet Almoxarife - Nova Porteirinha
A1: 1ª Superintendência Regional – Montes Claros / MG | B1: Discriminação dos Serviços
B2: B | C2: Município | J2: Nova Porteirinha
B3: C | C3: Ano do Acordo, Convenção ou Dissídio Coletivo | J3: 2021
B4: D | C4: Nº de meses de execução contratual | J4: 12
B6: Identificação do Serviço
B7: Tipo de Serviço | D7: Unidade de Medida | F7: Quantidade total a contratar
B8: ALMOXARIFADO | D8: SERVIÇO | F8: 3
B10: Dados para composição dos custos referentes à mão-de-obra
B11: 1 | C11: Tipo de serviço (mesmo serviço com características distintas) | J11: ='Almoxarife - Montes Claros'!J11 -> ALMOXARIFE
B12: 2 | C12: Classificação Brasileira de Ocupações (CBO) | J12: ='Almoxarife - Montes Claros'!J12 -> 4141-05
B13: 3 | C13: Salário Nominativo da Categoria Profissional | J13: 1572.27
B14: 4 | C14: Categoria profissional (vinculada à execução contratual) | J14: ='Almoxarife - Montes Claros'!J14 -> ALMOXARIFE
B15: 5 | C15: Data base da categoria (dia/mês/ano) | J15: 2021-01-01
B17: MÓDULO 1 - COMPOSIÇÃO DA REMUNERAÇÃO
B18: 1 | C18: COMPOSIÇÃO DA REMUNERAÇÃO | I18: % | J18: VALOR (R$)
B19: A | C19: Salário Base | J19: =J13 -> 1572.27
B20: B | C20: Adicional Periculosidade | J20: 0
B21: C | C21: Adicional Insalubridade | J21: =I21*J19 -> 0
B22: D | C22: Adicional Noturno | J22: 0
B23: E | C23: Adicional de Hora Noturna Reduzida | J23: 0
J24: 0
B25: G | C25: Outros (especificar) | J25: 0
B26: TOTAL DO MÓDULO 1 | J26: =TRUNC(SUM(J19:J25),2) -> 1572.27
B28: MÓDULO 2 – ENCARGOS E BENEFÍCIOS ANUAIS, MENSAIS E DIÁRIOS
B29: Submódulo 2.1 - 13º Salário, Férias e Adicional de Férias | I29: % | J29: VALOR (R$)
B30: A | C30: 13 (Décimo-terceiro) salário | I30: 0.0833 | J30: =I30*J26 -> 130.970091
B31: B | C31: Férias e Adicional de Férias | I31: 0.121 | J31: =I31*J26 -> 190.24467
B32: TOTAL SUBMÓDULO 2.1 | I32: =TRUNC(SUM(I30:I31),4) -> 0.2043 | J32: =TRUNC(SUM(J30:J31),2) -> 321.21
B34: Submódulo 2.2 - GPS, FGTS e Outras Contribuições | I34: % | J34: VALOR (R$)
B35: A | C35: INSS | I35: 0.2 | J35: =I35*$J$26 -> 314.454
B36: B | C36: Salário Educação | I36: 0.025 | J36: =I36*$J$26 -> 39.30675
B37: C | C37: SAT | I37: 0.03 | J37: 47.1681
B38: D | C38: SESC ou SESI | I38: 0.015 | J38: 23.58405
B39: E | C39: SENAI - SENAC | I39: 0.01 | J39: 15.7227
B40: F | C40: SEBRAE | I40: 0.006 | J40: 9.43362
B41: G | C41: INCRA | I41: 0.002 | J41: 3.14454
B42: H | C42: FGTS | I42: 0.08 | J42: 125.7816
B43: TOTAL SUBMÓDULO 2.2 | I43: =SUM(I35:I42) -> 0.368 | J43: =TRUNC(SUM(J35:J42),2) -> 578.59
B45: Submódulo 2.3 - Benefícios Mensais e Diários | J45: VALOR (R$)
B46: A | C46: Transporte | I46: - | J46: =(2.85*4*22)-(6%*J26) -> 156.4638
B47: B | C47: Auxílio-Refeição/Alimentação | I47: - | J47: =22.28*22*80% -> 392.128
B48: D | C48: Seguro de vida | I48: - | J48: 10
B49: E | C49: Programa de Qualificação Profissional e Marketing - PQM | I49: - | J49: 11.22
B50: F | C50: Contribuição Assistencial Patronal | I50: - | J50: 11.19
B51: G | C51: Outros (especificar) | I51: -
B52: TOTAL SUBMÓDULO 2.3 | J52: =TRUNC(SUM(J46:J51),2) -> 581
B54: QUADRO-RESUMO DO MÓDULO 2 - ENCARGOS, BENEFÍCIOS ANUAIS, MENSAIS E DIÁRIOS
B55: Módulo 2 - Encargos, Benefícios Anuais, Mensais e Diários | J55: VALOR (R$)
B56: 2.1 | C56: 13º Salário, Férias e Adicional de Férias | J56: =J32 -> 321.21
B57: 2.2 | C57: GPS, FGTS e Outras Contribuições | J57: =J43 -> 578.59
B58: 2.3 | C58: Benefícios Mensais e Diários | J58: =J52 -> 581
B59: TOTAL DO MÓDULO 2 | J59: =TRUNC(SUM(J56:J58),2) -> 1480.8
B61: MÓDULO 3 – PROVISÃO PARA RESCISÃO
B62: 3 | C62: PROVISÃO PARA RESCISÃO | I62: % | J62: VALOR (R$)
B63: A | C63: Aviso Prévio Indenizado | I63: 0.0284 | J63: =I63*$J$26 -> 44.652468
B64: B | C64: Incidência do FGTS sobre Aviso Prévio Indenizado | I64: =0.08*I63 -> 0.002272 | J64: 3.57219744
B65: C | C65: Multa do FGTS e Contribuição Social sobre o Aviso Prévio Indenizado | I65: 0.05 | J65: 78.6135
B66: D | C66: Aviso Prévio Trabalhado | I66: 0.01 | J66: 15.7227
B67: E | C67: Incidência dos encargos do submódulo 2.2 sobre Aviso Prévio Trabalhado | I67: =I43*I66 -> 0.00368 | J67: 5.7859536
B68: F | C68: Multa do FGTS e Contribuição Social sobre o Aviso Prévio Trabalhado. | I68: 0.05 | J68: 78.6135
B69: TOTAL DO MÓDULO 3 | I69: =TRUNC(SUM(I63:I68),4) -> 0.1443 | J69: =TRUNC(SUM(J63:J68),2) -> 226.96
B71: MÓDULO 4 – CUSTO DE REPOSIÇÃO DO PROFISSIONAL AUSENTE
B72: Submódulo 4.1 - Ausências Legais | I72: % | J72: VALOR (R$)
B73: A | C73: Férias | I73: 0.0833 | J73: =I73*$J$26 -> 130.970091
B74: B | C74: Ausências Legais | I74: 0.025 | J74: =I74*$J$26 -> 39.30675
B75: C | C75: Licença Paternidade | I75: 0.025 | J75: =I75*$J$26 -> 39.30675
B76: D | C76: Ausência por Acidente de Trabalho | I76: 0.02 | J76: =I76*$J$26 -> 31.4454
B77: E | C77: Afastamento Maternidade | I77: 0.03 | J77: =I77*$J$26 -> 47.1681
B78: F | C78: Outros (especificar)
B79: TOTAL SUBMÓDULO 4.1 | J79: =TRUNC(SUM(J73:J78),2) -> 288.19
B81: Submódulo 4.2 - Intrajornada | I81: % | J81: VALOR (R$)
B82: A | C82: Intervalo para Repouso ou Alimentação | I82: 0 | J82: =$J$26*I82 -> 0
B83: TOTAL SUBMÓDULO 4.2 | I83: =TRUNC(SUM(I82),4) -> 0 | J83: =TRUNC(SUM(J82),2) -> 0
B85: QUADRO-RESUMO DO MÓDULO 4 - CUSTO DE REPOSIÇÃO DO PROFISSIONAL AUSENTE
B86: Módulo 4 - Custo de Reposição do Profissional Ausente | J86: VALOR (R$)
B87: 4.1 | C87: Ausências Legais | J87: =J79 -> 288.19
B88: 4.2 | C88: Intrajornada | J88: =J83 -> 0
B89: TOTAL DO MÓDULO 4 | J89: =TRUNC(SUM(J87:J88),2) -> 288.19
B91: MÓDULO 5 – INSUMOS DIVERSOS
B92: 5 | C92: INSUMOS DIVERSOS | J92: VALOR (R$)
B93: A | C93: Uniformes | I93: - | J93: =Uniformes!E5 -> 32.14
B94: B | C94: Materiais (mensal + quadrimestral + utensilios) | I94: - | J94: -
B95: C | C95: Equipamentos (EQUIPAMENTOS DE LIMPEZA) | I95: - | J95: 0
B96: D | C96: Outros (CRACHÁS) | I96: - | J96: 0
B97: TOTAL DO MÓDULO 5 | I97: - | J97: =SUM(J93:J96) -> 32.14
B99: MÓDULO 6 – CUSTOS INDIRETOS, TRIBUTOS E LUCRO
B100: 6 | C100: CUSTOS INDIRETOS, TRIBUTOS E LUCRO | I100: % | J100: VALOR (R$)
B101: A | C101: Custos Indiretos | I101: 0.03 | J101: =TRUNC(I101*J117,2) -> 108.01
B102: B | C102: Lucro | I102: 0.0675 | J102: =TRUNC(I102*(J101+J117),2) -> 250.31
B103: C | C103: TRIBUTOS | F103: Base Cálculo | H103: =ROUND((J117+J101+J102)/(1-I103),2) -> 4616.54 | I103: =I104+I105+I106 -> 0.1425 | J103: =H103*I103 -> 657.85695
B104: C.1 | C104: PIS | I104: 0.0165 | J104: =H103*I104 -> 76.17291
B105: C.2 | C105: COFINS | I105: 0.076 | J105: =H103*I105 -> 350.85704
B106: C.3 | C106: ISSQN | I106: 0.05 | J106: =H103*I106 -> 230.827
B107: TOTAL DO MÓDULO 6 | J107: =J101+J102+J103 -> 1016.17695
B110: QUADRO RESUMO DO CUSTO POR EMPREGADO
B111: Mão-de-Obra vinculada à execução contratual (valor por empregado) | J111: VALOR (R$)
B112: A | C112: =B17 -> MÓDULO 1 - COMPOSIÇÃO DA REMUNERAÇÃO | J112: =J26 -> 1572.27
B113: B | C113: =B28 -> MÓDULO 2 – ENCARGOS E BENEFÍCIOS ANUAIS, MENSAIS E DIÁRIOS | J113: =J59 -> 1480.8
B114: C | C114: =B61 -> MÓDULO 3 – PROVISÃO PARA RESCISÃO | J114: =J69 -> 226.96
B115: D | C115: =B71 -> MÓDULO 4 – CUSTO DE REPOSIÇÃO DO PROFISSIONAL AUSENTE | J115: =J89 -> 288.19
B116: E | C116: =B91 -> MÓDULO 5 – INSUMOS DIVERSOS | J116: =J97 -> 32.14
C117: Subtotal (A + B + C + D + E) | J117: =TRUNC(SUM(J112:J116),2) -> 3600.36
B118: F | C118: =B99 -> MÓDULO 6 – CUSTOS INDIRETOS, TRIBUTOS E LUCRO | J118: =J107 -> 1016.17695
B119: PREÇO TOTAL POR EMPREGADO | J119: =TRUNC(SUM(J117:J118),2)-0.09 -> 4616.44

Sheet Almoxarife - Três Marias
A1: 1ª Superintendência Regional – Montes Claros / MG | B1: Discriminação dos Serviços
B2: B | C2: Município | J2: Três Marias/MG
B3: C | C3: Ano do Acordo, Convenção ou Dissídio Coletivo | J3: 2021
B4: D | C4: Nº de meses de execução contratual | J4: 12
B6: Identificação do Serviço
B7: Tipo de Serviço | D7: Unidade de Medida | F7: Quantidade total a contratar
B8: ALMOXARIFE | D8: SERVIÇO | F8: 2
B10: Dados para composição dos custos referentes à mão-de-obra
B11: 1 | C11: Tipo de serviço (mesmo serviço com características distintas) | J11: =B8 -> ALMOXARIFE
B12: 2 | C12: Classificação Brasileira de Ocupações (CBO) | J12: 4141-05
B13: 3 | C13: Salário Nominativo da Categoria Profissional | J13: 1725.95
B14: 4 | C14: Categoria profissional (vinculada à execução contratual) | J14: ALMOXARIFE
B15: 5 | C15: Data base da categoria (dia/mês/ano) | J15: 2021-01-01
B17: MÓDULO 1 - COMPOSIÇÃO DA REMUNERAÇÃO
B18: 1 | C18: COMPOSIÇÃO DA REMUNERAÇÃO | I18: % | J18: VALOR (R$)
B19: A | C19: Salário Base | J19: =J13 -> 1725.95
B20: B | C20: Adicional Periculosidade | J20: 0
B21: C | C21: Adicional Insalubridade | J21: =I21*J19 -> 0
B22: D | C22: Adicional Noturno | J22: 0
B23: E | C23: Adicional de Hora Noturna Reduzida | J23: 0
J24: 0
B25: G | C25: Outros (especificar) | J25: 0
B26: TOTAL DO MÓDULO 1 | J26: =TRUNC(SUM(J19:J25),2) -> 1725.95
B28: MÓDULO 2 – ENCARGOS E BENEFÍCIOS ANUAIS, MENSAIS E DIÁRIOS
B29: Submódulo 2.1 - 13º Salário, Férias e Adicional de Férias | I29: % | J29: VALOR (R$)
B30: A | C30: 13 (Décimo-terceiro) salário | I30: 0.0833 | J30: =I30*J26 -> 143.771635
B31: B | C31: Férias e Adicional de Férias | I31: 0.121 | J31: =I31*J26 -> 208.83995
B32: TOTAL SUBMÓDULO 2.1 | I32: =TRUNC(SUM(I30:I31),4) -> 0.2043 | J32: =TRUNC(SUM(J30:J31),2) -> 352.61
B34: Submódulo 2.2 - GPS, FGTS e Outras Contribuições | I34: % | J34: VALOR (R$)
B35: A | C35: INSS | I35: 0.2 | J35: =I35*$J$26 -> 345.19
B36: B | C36: Salário Educação | I36: 0.025 | J36: =I36*$J$26 -> 43.14875
B37: C | C37: SAT | I37: 0.03 | J37: 51.7785
B38: D | C38: SESC ou SESI | I38: 0.015 | J38: 25.88925
B39: E | C39: SENAI - SENAC | I39: 0.01 | J39: 17.2595
B40: F | C40: SEBRAE | I40: 0.006 | J40: 10.3557
B41: G | C41: INCRA | I41: 0.002 | J41: 3.4519
B42: H | C42: FGTS | I42: 0.08 | J42: 138.076
B43: TOTAL SUBMÓDULO 2.2 | I43: =SUM(I35:I42) -> 0.368 | J43: =TRUNC(SUM(J35:J42),2) -> 635.14
B45: Submódulo 2.3 - Benefícios Mensais e Diários | J45: VALOR (R$)
B46: A | C46: Transporte | I46: - | J46: =((3.7*4)*22)-(6%*J26) -> 222.043
B47: B | C47: Auxílio-Refeição/Alimentação | I47: - | J47: =23*22*80% -> 404.8
B48: D | C48: Seguro de vida | I48: - | J48: 10
B49: E | C49: Auxílio Saúde - PAF | I49: -
B50: F | C50: Outros (especificar) | I50: -
B51: TOTAL SUBMÓDULO 2.3 | J51: =TRUNC(SUM(J46:J50),2) -> 636.84
B53: QUADRO-RESUMO DO MÓDULO 2 - ENCARGOS, BENEFÍCIOS ANUAIS, MENSAIS E DIÁRIOS
B54: Módulo 2 - Encargos, Benefícios Anuais, Mensais e Diários | J54: VALOR (R$)
B55: 2.1 | C55: 13º Salário, Férias e Adicional de Férias | J55: =J32 -> 352.61
B56: 2.2 | C56: GPS, FGTS e Outras Contribuições | J56: =J43 -> 635.14
B57: 2.3 | C57: Benefícios Mensais e Diários | J57: =J51 -> 636.84
B58: TOTAL DO MÓDULO 2 | J58: =TRUNC(SUM(J55:J57),2) -> 1624.59
B60: MÓDULO 3 – PROVISÃO PARA RESCISÃO
B61: 3 | C61: PROVISÃO PARA RESCISÃO | I61: % | J61: VALOR (R$)
B62: A | C62: Aviso Prévio Indenizado | I62: 0.0284 | J62: =I62*$J$26 -> 49.01698
B63: B | C63: Incidência do FGTS sobre Aviso Prévio Indenizado | I63: =0.08*I62 -> 0.002272 | J63: 3.9213584
B64: C | C64: Multa do FGTS e Contribuição Social sobre o Aviso Prévio Indenizado | I64: 0.05 | J64: 86.2975
B65: D | C65: Aviso Prévio Trabalhado | I65: 0.01 | J65: 17.2595
B66: E | C66: Incidência dos encargos do submódulo 2.2 sobre Aviso Prévio Trabalhado | I66: =I43*I65 -> 0.00368 | J66: 6.351496
B67: F | C67: Multa do FGTS e Contribuição Social sobre o Aviso Prévio Trabalhado. | I67: 0.05 | J67: 86.2975
B68: TOTAL DO MÓDULO 3 | I68: =TRUNC(SUM(I62:I67),4) -> 0.1443 | J68: =TRUNC(SUM(J62:J67),2) -> 249.14
B70: MÓDULO 4 – CUSTO DE REPOSIÇÃO DO PROFISSIONAL AUSENTE
B71: Submódulo 4.1 - Ausências Legais | I71: % | J71: VALOR (R$)
B72: A | C72: Férias | I72: 0.0833 | J72: =I72*$J$26 -> 143.771635
B73: B | C73: Ausências Legais | I73: 0.025 | J73: =I73*$J$26 -> 43.14875
B74: C | C74: Licença Paternidade | I74: 0.025 | J74: =I74*$J$26 -> 43.14875
B75: D | C75: Ausência por Acidente de Trabalho | I75: 0.02 | J75: =I75*$J$26 -> 34.519
B76: E | C76: Afastamento Maternidade | I76: 0.03 | J76: =I76*$J$26 -> 51.7785
B77: F | C77: Outros (especificar)
B78: TOTAL SUBMÓDULO 4.1 | J78: =TRUNC(SUM(J72:J77),2) -> 316.36
B80: Submódulo 4.2 - Intrajornada | I80: % | J80: VALOR (R$)
B81: A | C81: Intervalo para Repouso ou Alimentação | I81: 0 | J81: =$J$26*I81 -> 0
B82: TOTAL SUBMÓDULO 4.2 | I82: =TRUNC(SUM(I81),4) -> 0 | J82: =TRUNC(SUM(J81),2) -> 0
B84: QUADRO-RESUMO DO MÓDULO 4 - CUSTO DE REPOSIÇÃO DO PROFISSIONAL AUSENTE
B85: Módulo 4 - Custo de Reposição do Profissional Ausente | J85: VALOR (R$)
B86: 4.1 | C86: Ausências Legais | J86: =J78 -> 316.36
B87: 4.2 | C87: Intrajornada | J87: =J82 -> 0
B88: TOTAL DO MÓDULO 4 | J88: =TRUNC(SUM(J86:J87),2) -> 316.36
B90: MÓDULO 5 – INSUMOS DIVERSOS
B91: 5 | C91: INSUMOS DIVERSOS | J91: VALOR (R$)
B92: A | C92: Uniformes | I92: - | J92: =Uniformes!E5 -> 32.14
B93: B | C93: Materiais (mensal + quadrimestral + utensilios) | I93: - | J93: -
B94: C | C94: Equipamentos (EQUIPAMENTOS DE LIMPEZA) | I94: - | J94: 0
B95: D | C95: Outros (CRACHÁS) | I95: - | J95: 0
B96: TOTAL DO MÓDULO 5 | I96: - | J96: =SUM(J92:J95) -> 32.14
B98: MÓDULO 6 – CUSTOS INDIRETOS, TRIBUTOS E LUCRO
B99: 6 | C99: CUSTOS INDIRETOS, TRIBUTOS E LUCRO | I99: % | J99: VALOR (R$)
B100: A | C100: Custos Indiretos | I100: 0.03 | J100: =TRUNC(I100*J116,2) -> 118.44
B101: B | C101: Lucro | I101: 0.0675 | J101: =TRUNC(I101*(J100+J116),2) -> 274.49
B102: C | C102: TRIBUTOS | F102: Base Cálculo | H102: =ROUND((J116+J100+J101)/(1-I102),2) -> 4947.13 | I102: =I103+I104+I105 -> 0.1225 | J102: =H102*I102 -> 606.023425
B103: C.1 | C103: PIS | I103: 0.0165 | J103: =H102*I103 -> 81.627645
B104: C.2 | C104: COFINS | I104: 0.076 | J104: =H102*I104 -> 375.98188
B105: C.3 | C105: ISSQN | I105: 0.03 | J105: =H102*I105 -> 148.4139
B106: TOTAL DO MÓDULO 6 | J106: =J100+J101+J102 -> 998.953425
B109: QUADRO RESUMO DO CUSTO POR EMPREGADO
B110: Mão-de-Obra vinculada à execução contratual (valor por empregado) | J110: VALOR (R$)
B111: A | C111: =B17 -> MÓDULO 1 - COMPOSIÇÃO DA REMUNERAÇÃO | J111: =J26 -> 1725.95
B112: B | C112: =B28 -> MÓDULO 2 – ENCARGOS E BENEFÍCIOS ANUAIS, MENSAIS E DIÁRIOS | J112: =J58 -> 1624.59
B113: C | C113: =B60 -> MÓDULO 3 – PROVISÃO PARA RESCISÃO | J113: =J68 -> 249.14
B114: D | C114: =B70 -> MÓDULO 4 – CUSTO DE REPOSIÇÃO DO PROFISSIONAL AUSENTE | J114: =J88 -> 316.36
B115: E | C115: =B90 -> MÓDULO 5 – INSUMOS DIVERSOS | J115: =J96 -> 32.14
C116: Subtotal (A + B + C + D + E) | J116: =TRUNC(SUM(J111:J115),2) -> 3948.18
B117: F | C117: =B98 -> MÓDULO 6 – CUSTOS INDIRETOS, TRIBUTOS E LUCRO | J117: =J106 -> 998.953425
B118: PREÇO TOTAL POR EMPREGADO | J118: =TRUNC(SUM(J116:J117),2) -> 4947.13

Sheet Uniformes
A1: 1ª Superintendência Regional – Montes Claros / MG | B1: Preço médio unitário (R$) | C1: Quantidade anual | D1: Custo anual por posto (R$) | E1: Custo mensal por posto (R$)
A2: Calça comprida com elástico e cordão, em gabardine ou brim | B2: 29.05 | C2: 4 | D2: 116.2 | E2: 9.68
A3: Camiseta malha fria, com gola esporte, em gabardine com emblema da empresa pintado | B3: 20.11 | C3: 4 | D3: 80.44 | E3: 6.7
A4: Calçado: sapato preto em couro, solado baixo, com palmilha antibacteriana | B4: 100.55 | C4: 2 | D4: 201.1 | E4: 15.76
D5: Total | E5: 32.14
I15: =9.68+6.7+15.76 -> 32.14
